bitfinex-derivatives/quotes_ETHF0:USTF0_20260104
["timestamp","ask_amount","ask_price","bid_price","bid_amount"]
[1767507302763,6.14558587,3156.7,3155.7,0.00475029]
[1767507302969,0.14304927,3156.6,3155.7,0.00475029]
[1767507307677,0.14304927,3156.4,3154.8,0.52625915]
[1767507308767,0.14304927,3156.4,3155.3,0.00475029]
[1767507310073,0.14304927,3155.8,3154.5,5.70341404]
[1767507310263,0.14304927,3155.5,3154.5,5.70341404]
[1767507310468,0.14304927,3155.5,3154.2,0.00338995]
[1767507310963,0.14304927,3155.1,3154.2,0.00338995]
[1767507311164,0.14304927,3155.1,3154.3,0.00475029]
[1767507313668,3.169,3155.9,3153.3,0.15863]
[1767507313669,0.14304927,3154.8,3153.3,0.15863]
[1767507314677,0.14304927,3154.8,3153.7,0.00475029]
[1767507322486,0.00475029,3154.6,3153.7,0.00475029]
[1767507322681,0.14304927,3154.5,3153.7,0.00475029]
[1767507332894,0.14304927,3154.5,3153.3,0.00300194]
[1767507333596,0.52625915,3154.3,3153.3,0.00300194]
[1767507333787,0.52625915,3154.3,3152.5,0.25241256]
[1767507333788,0.14287586,3154.2,3152.5,0.25241256]
[1767507333991,0.14287586,3154.1,3152.8,0.52625915]
[1767507334794,0.14287586,3154.1,3152.8,0.52944187]
[1767507334995,0.14287586,3154.1,3153.1,0.53100944]
[1767507335500,0.14287586,3154.1,3153.1,0.00475029]
[1767507343412,0.66913501,3154.1,3153.1,0.00475029]
[1767507343701,0.14287586,3153.7,3152.8,0.00318272]
[1767507344594,0.14287586,3153.7,3152.9,0.00316688]
[1767507350622,0.14287586,3153.7,3152.8,0.00318272]
[1767507350623,0.14287586,3153.6,3152.1,0.15869]
[1767507351223,0.14287586,3153.4,3152.0,0.52625915]
[1767507351518,0.00475029,3153.0,3152.0,0.52625915]
[1767507351710,0.00475029,3153.0,3152.0,0.52938497]
[1767507352616,0.00475029,3153.0,3152.0,0.00312582]
[1767507354219,0.14762615,3153.0,3152.0,0.00312582]
[1767507356023,0.00475029,3153.0,3152.0,0.00312582]
[1767507356222,0.00475029,3153.0,3152.0,6.00312582]
[1767507357118,0.00475029,3153.0,3152.0,0.00312582]
[1767507362033,0.00475029,3153.0,3152.1,6.0]
[1767507365938,0.14187271,3153.0,3152.0,0.00312582]
[1767507384746,0.13712242,3152.9,3151.9,0.77886908]
[1767507385750,0.13712242,3152.9,3151.9,0.78169732]
[1767507386155,6.0,3152.8,3151.9,0.63626435]
[1767507388150,0.13712242,3152.9,3151.9,0.63626435]
[1767507388348,6.0,3152.8,3151.9,0.63626435]
[1767507397049,5.41475029,3153.0,3151.9,0.63626435]
[1767507397249,11.41475029,3153.0,3151.9,0.63626435]
[1767507397851,5.5547792,3152.9,3151.9,0.50448344]
[1767507398055,5.423,3152.9,3151.9,0.50448344]
[1767507401256,11.423,3152.9,3151.4,0.13331711]
[1767507401454,5.423,3152.9,3151.4,0.13331711]
[1767507402254,5.423,3152.9,3151.4,0.13626831]
[1767507402760,5.426,3152.8,3151.4,0.13626831]
[1767507412065,0.00475029,3153.0,3151.4,0.13626831]
[1767507412267,5.42,3152.9,3151.4,0.13626831]
[1767507412461,5.42,3152.9,3151.6,0.13331711]
[1767507413062,0.00475029,3153.0,3151.6,0.13331711]
[1767507413262,3.50175029,3153.0,3151.6,0.13331711]
[1767507414873,5.42275029,3153.0,3151.6,0.13331711]
[1767507417266,5.42075029,3153.0,3151.6,0.13331711]
[1767507421172,0.00475029,3153.0,3151.6,0.13331711]
[1767507421374,5.41875029,3153.0,3151.6,0.13331711]
[1767507425079,0.5273666,3152.0,3151.4,0.0029512]
[1767507425279,0.53135568,3152.0,3151.1,5.70341404]
[1767507425777,0.53135568,3152.0,3150.8,0.29819349]
[1767507425974,0.53135568,3152.0,3150.8,6.29819349]
[1767507426177,0.53135568,3152.0,3150.8,6.30123004]
[1767507426374,0.53135568,3152.0,3150.8,0.30123004]
[1767507426568,0.53135568,3152.0,3150.8,0.14248004]
[1767507426883,0.5273666,3151.7,3150.8,0.14248004]
[1767507427281,0.5273666,3151.9,3150.8,0.14248004]
[1767507428678,0.5273666,3151.9,3150.8,0.00303655]
[1767507429680,0.5273666,3151.3,3150.1,0.15879]
[1767507429879,0.00475813,3151.0,3150.0,0.13944349]
[1767507430780,0.00475813,3151.0,3150.0,0.14249338]
[1767507432591,0.53212473,3151.0,3149.6,0.13944349]
[1767507432885,0.5273666,3150.5,3149.6,0.13944349]
[1767507433274,0.5273666,3150.2,3148.9,0.13944349]
[1767507433485,0.5273666,3150.1,3148.9,0.13944349]
[1767507433687,0.5273666,3150.1,3148.9,0.1418308]
[1767507433883,0.53212473,3151.0,3148.9,0.1418308]
[1767507433884,5.405,3150.5,3149.1,0.13944349]
[1767507434289,0.5273666,3150.3,3149.1,0.13944349]
[1767507434979,5.405,3150.6,3149.1,0.13944349]
[1767507435878,0.16350813,3151.0,3149.4,0.13944349]
[1767507435879,0.00475813,3151.0,3149.4,0.13944349]
[1767507436292,0.00475813,3151.0,3149.7,0.13944349]
[1767507437187,0.00475813,3151.0,3149.7,6.13944349]
[1767507437493,0.00475813,3151.0,3150.0,0.13944349]
[1767507437886,0.5273666,3150.9,3150.0,0.13944349]
[1767507438190,0.5273666,3150.9,3149.4,0.6861966]
[1767507438191,0.5273666,3150.9,3149.5,0.13944349]
[1767507438590,0.00475813,3151.0,3149.5,0.13944349]
[1767507438781,0.00475813,3151.0,3149.5,0.66681009]
[1767507438980,0.00475813,3151.0,3149.6,0.13944349]
[1767507439383,0.00475813,3151.0,3149.9,0.13944349]
[1767507440386,0.00475813,3151.0,3150.0,0.13944349]
[1767507441193,0.00475813,3151.0,3150.1,0.13944349]
[1767507441585,0.00475813,3151.0,3149.9,0.5273666]
[1767507441586,0.00475813,3151.0,3150.3,0.13944349]
[1767507445497,1.1833666,3151.9,3150.4,0.13944349]
[1767507445999,0.656,3151.9,3150.4,0.13944349]
[1767507446304,0.656,3151.9,3150.6,0.13944349]
[1767507446490,0.656,3151.9,3150.9,0.00475813]
[1767507446696,0.00475813,3151.6,3150.9,0.00475813]
[1767507447198,0.00398908,3152.0,3150.9,0.67156822]
[1767507447402,0.00398908,3152.0,3151.0,0.13944349]
[1767507447598,0.5273666,3151.9,3150.9,0.00475813]
[1767507448301,0.00475813,3151.7,3150.9,0.00475813]
[1767507449197,0.00475813,3151.7,3150.9,0.14420162]
[1767507455108,0.00475813,3151.7,3151.0,0.13730858]
[1767507455301,0.00398908,3152.0,3151.0,0.13730858]
[1767507456208,0.00475813,3151.8,3151.0,0.13730858]
[1767507463717,0.00398908,3152.0,3151.0,0.13730858]
[1767507468316,0.15862,3153.6,3151.9,0.13730858]
[1767507468518,0.00475813,3153.1,3151.9,0.13730858]
[1767507469415,0.00854478,3153.1,3151.9,0.1399157]
[1767507471324,3.641,3154.0,3152.3,0.15868]
[1767507471523,0.5273666,3154.2,3152.9,0.13730858]
[1767507471722,0.5273666,3153.6,3152.9,0.13730858]
[1767507471916,0.5273666,3153.6,3152.4,0.13730858]
[1767507472417,0.00475813,3153.3,3152.7,0.14206671]
[1767507472622,0.00243778,3153.6,3152.7,0.14206671]
[1767507473517,0.00314596,3153.5,3152.7,0.14206671]
[1767507473823,0.00243778,3153.6,3152.7,0.14206671]
[1767507474015,0.68559564,3154.7,3152.7,0.14206671]
[1767507475115,0.16224816,3154.7,3152.7,0.14206671]
[1767507476924,0.52703564,3154.6,3152.7,0.14206671]
[1767507480432,6.53951396,3154.6,3152.7,0.14206671]
[1767507481131,6.01247832,3154.6,3152.7,0.14206671]
[1767507481530,6.0,3154.6,3152.7,0.14206671]
[1767507481833,0.00368816,3154.7,3152.7,0.14206671]
[1767507482733,0.00368816,3154.7,3152.9,0.14012091]
[1767507489135,0.00368816,3154.7,3153.0,0.14012091]
[1767507497645,7.00508205,3154.6,3153.0,0.14012091]
[1767507497843,6.0,3154.6,3153.0,0.14012091]
[1767507498235,1.00645323,3154.5,3153.0,0.14012091]
[1767507498436,6.0,3154.6,3153.0,0.14012091]
[1767507498639,1.16509301,3154.5,3153.0,0.14012091]
[1767507498845,0.15857,3154.5,3153.0,0.14012091]
[1767507499738,1.00722165,3154.4,3153.0,0.14012091]
[1767507499937,0.15857,3154.5,3153.0,0.14012091]
[1767507500142,7.00722382,3154.4,3153.0,0.14012091]
[1767507500343,6.0,3154.4,3153.0,0.14012091]
[1767507501231,1.00877334,3154.3,3153.0,0.14012091]
[1767507501448,6.0,3154.4,3153.0,0.14012091]
[1767507501645,1.00873956,3154.3,3153.0,0.14012091]
[1767507501845,6.0,3154.4,3153.0,0.14012091]
[1767507502148,1.00874035,3154.3,3153.0,0.14012091]
[1767507502339,6.0,3154.4,3153.0,0.14012091]
[1767507507239,0.68561564,3154.3,3152.7,0.00475813]
[1767507507444,1.6941514,3154.3,3152.7,0.00475813]
[1767507507642,0.68561564,3154.3,3152.7,0.00475813]
[1767507508441,0.68561564,3154.3,3152.7,0.14487904]
[1767507514557,6.68561564,3154.3,3152.7,0.14487904]
[1767507515749,0.15859,3154.2,3152.7,0.14487904]
[1767507520854,5.35,3154.4,3152.7,0.14487904]
[1767507523750,0.52703564,3154.3,3152.7,0.14487904]
[1767507523955,0.52703564,3153.8,3151.9,0.00260712]
[1767507524963,0.00475813,3153.2,3152.5,0.00475813]
[1767507528859,0.00475813,3153.2,3152.5,0.14325766]
[1767507529163,5.35,3154.4,3152.7,0.13849953]
[1767507529365,1.00978932,3154.3,3152.7,0.13849953]
[1767507529563,5.35,3154.4,3152.7,0.13849953]
[1767507529864,1.00978893,3154.3,3152.7,0.13849953]
[1767507530063,5.35,3154.4,3152.7,0.13849953]
[1767507530257,1.00979044,3154.3,3152.7,0.13849953]
[1767507530458,5.35,3154.4,3152.7,0.13849953]
[1767507530653,1.00985952,3154.3,3152.7,0.13849953]
[1767507530860,5.35,3154.4,3152.7,0.13849953]
[1767507531052,1.00985952,3154.3,3152.7,0.13849953]
[1767507531257,5.35,3154.4,3152.7,0.13849953]
[1767507531456,1.00993548,3154.3,3152.7,0.13849953]
[1767507531662,5.35,3154.4,3152.7,0.13849953]
[1767507531863,1.00993548,3154.3,3152.7,0.13849953]
[1767507532062,5.35,3154.4,3152.7,0.13849953]
[1767507532366,1.00993548,3154.3,3152.7,0.13849953]
[1767507532564,5.35,3154.4,3152.7,0.13849953]
[1767507534666,0.52702719,3154.1,3152.7,0.13849953]
[1767507539468,5.35,3154.4,3152.7,0.13849953]
[1767507539674,0.52702719,3154.1,3152.7,0.13849953]
[1767507541168,5.35,3154.4,3152.8,0.13659993]
[1767507541365,6.59717594,3155.0,3152.8,0.13659993]
[1767507541366,0.53071535,3154.7,3153.1,0.13659993]
[1767507541572,0.52702719,3154.4,3153.1,0.13659993]
[1767507543573,0.00368816,3154.7,3153.1,0.13659993]
[1767507543774,0.52702719,3154.6,3153.1,0.13659993]
[1767507544571,0.52702719,3154.3,3153.1,0.13659993]
[1767507546477,0.00368816,3154.7,3153.1,0.13659993]
[1767507546676,0.52702719,3154.6,3153.1,0.13659993]
[1767507547571,0.00368816,3154.7,3153.3,0.13659993]
[1767507552869,0.52702719,3154.6,3153.3,0.13659993]
[1767507561975,0.00368816,3154.7,3153.5,0.13659993]
[1767507569785,0.00368816,3154.7,3153.5,0.66362712]
[1767507570089,0.00368816,3154.7,3153.6,0.13659993]
[1767507573984,0.00368816,3154.7,3153.9,0.14532127]
[1767507580802,0.00368816,3154.7,3153.3,0.68565719]
[1767507580992,0.00368816,3154.7,3153.4,0.14532127]
[1767507583605,0.52702719,3154.6,3153.4,0.14532127]
[1767507586604,0.00368816,3154.7,3153.4,0.14532127]
[1767507594401,0.00368816,3154.7,3153.4,0.67234846]
[1767507594701,0.00368816,3154.7,3153.4,0.14532127]
[1767507621722,0.00368816,3154.7,3153.4,0.15862]
[1767507622028,0.00368816,3154.7,3153.5,0.13681772]
[1767507623021,6.0102286,3155.5,3153.5,0.13681772]
[1767507623326,6.0102286,3155.5,3154.2,0.14157585]
[1767507624030,6.01299442,3155.5,3154.2,0.14552209]
[1767507624428,6.01299442,3155.5,3154.2,0.00870437]
[1767507625421,0.14294102,3155.3,3153.8,0.13681772]
[1767507626427,0.00475813,3154.9,3154.2,0.00475813]
[1767507626732,0.00475813,3154.9,3153.8,0.14052405]
[1767507627929,0.00475813,3154.9,3154.0,0.00475813]
[1767507629223,0.00475813,3154.9,3153.8,0.14052405]
[1767507630222,0.00475813,3154.9,3154.0,0.00475813]
[1767507634336,6.00475813,3154.9,3154.0,0.00475813]
[1767507640442,1.70810806,3157.0,3154.4,0.5267086]
[1767507640634,0.14305953,3157.0,3155.0,0.5267086]
[1767507641435,0.00475813,3156.3,3155.7,0.00475813]
[1767507644529,0.14781766,3156.3,3155.8,1.05197546]
[1767507649846,0.14781766,3156.3,3155.9,1.05197546]
[1767507650042,0.14781766,3156.3,3155.8,1.05197546]
[1767507650254,0.14305953,3156.2,3154.2,1.40290982]
[1767507650445,0.14305953,3156.2,3154.1,4.533]
[1767507650749,0.14305953,3156.2,3154.2,4.20069328]
[1767507651041,0.00475813,3156.3,3154.6,0.15856]
[1767507651242,0.00475813,3156.3,3155.1,0.00475813]
[1767507655244,0.00475813,3156.3,3155.1,6.00475813]
[1767507656648,0.00475813,3156.3,3155.2,0.5260913]
[1767507660055,0.14428802,3156.2,3155.1,0.00475813]
[1767507660268,0.67037932,3155.4,3154.2,1.38809861]
[1767507660558,0.67037932,3155.1,3153.8,0.16230633]
[1767507661259,0.14428802,3155.1,3154.1,0.00475813]
[1767507661461,0.14428802,3155.5,3154.1,0.00475813]
[1767507662454,0.14428802,3155.2,3154.1,0.00475813]
[1767507663153,0.14428802,3154.9,3154.1,0.00475813]
[1767507663356,0.14428802,3154.6,3153.8,0.00370633]
[1767507663557,0.14700497,3154.6,3153.8,0.00370633]
[1767507664343,0.14700497,3154.6,3153.9,0.00475813]
[1767507664549,0.00475813,3154.5,3153.9,0.00475813]
[1767507664945,0.00475813,3154.5,3153.9,6.53084943]
[1767507665151,0.14428802,3155.5,3153.9,0.53084943]
[1767507665655,0.14428802,3155.5,3153.9,0.00475813]
[1767507666065,0.00475813,3155.0,3153.9,0.00475813]
[1767507667160,0.00475813,3155.0,3153.9,6.00475813]
[1767507669758,0.00475813,3155.0,3153.9,6.53084943]
[1767507671770,0.00475813,3155.0,3153.9,12.13184943]
[1767507672764,0.00475813,3155.0,3153.9,5.60575813]
[1767507672970,0.67513745,3155.0,3153.9,5.60775813]
[1767507673163,0.14904615,3155.0,3153.9,5.60775813]
[1767507674269,0.14904615,3155.0,3153.9,0.00475813]
[1767507675468,0.00475813,3155.0,3153.9,0.00475813]
[1767507676972,0.00475813,3155.0,3153.9,5.60675813]
[1767507678374,0.14428802,3154.9,3153.9,5.60675813]
[1767507678669,0.14428802,3154.9,3153.9,0.00475813]
[1767507678975,0.14428802,3154.9,3153.9,5.60775813]
[1767507679569,0.14428802,3154.9,3153.9,0.00475813]
[1767507686072,0.67037932,3154.7,3153.9,0.00475813]
[1767507686273,0.14428802,3154.6,3153.9,0.00475813]
[1767507691181,0.66991771,3155.0,3153.9,0.00475813]
[1767507691680,0.13906828,3154.9,3153.9,0.00475813]
[1767507700093,0.13265805,3154.8,3153.9,0.00475813]
[1767507700393,0.13265805,3154.5,3153.9,0.00475813]
[1767507709696,0.13265805,3154.5,3153.8,0.00370633]
[1767507709897,0.13265805,3154.2,3152.9,0.15865]
[1767507710097,0.13265805,3153.9,3153.1,5.59]
[1767507710794,0.13265805,3153.9,3153.2,0.00475813]
[1767507715207,0.13265805,3153.9,3153.2,6.00475813]
[1767507715602,0.13265805,3154.5,3153.2,6.00475813]
[1767507715809,0.13265805,3154.5,3153.2,0.00475813]
[1767507716014,0.13265805,3154.5,3153.3,0.5260913]
[1767507716521,0.13265805,3154.5,3153.2,6.00475813]
[1767507717211,0.13265805,3154.5,3153.2,0.00475813]
[1767507718122,0.5260913,3154.4,3153.2,0.00475813]
[1767507718327,0.13265805,3154.3,3153.3,5.609]
[1767507719424,0.13265805,3154.3,3153.2,0.00475813]
[1767507719720,0.13265805,3154.3,3153.3,5.61]
[1767507720920,0.13265805,3154.3,3153.3,5.612]
[1767507721713,0.13265805,3154.3,3153.2,0.00475813]
[1767507722014,0.13265805,3154.3,3153.2,5.61775813]
[1767507722819,0.14375631,3154.9,3153.2,5.61775813]
[1767507723320,0.14375631,3154.9,3153.2,5.77638813]
[1767507725919,0.14375631,3154.9,3153.3,5.614]
[1767507730823,0.14375631,3154.6,3153.2,0.00475813]
[1767507731029,0.14375631,3154.6,3153.2,5.61575813]
[1767507737027,0.14375631,3154.6,3153.2,5.77439813]
[1767507737430,0.14851444,3155.0,3153.3,0.15863]
[1767507739931,0.14851444,3155.0,3153.3,0.17526271]
[1767507743340,0.14851444,3155.0,3153.3,0.15863]
[1767507746142,0.14851444,3155.0,3153.4,5.612]
[1767507747143,0.14851444,3155.0,3153.3,0.15863]
[1767507747442,0.14851444,3155.0,3153.4,5.612]
[1767507747641,0.14851444,3155.0,3153.3,0.15863]
[1767507747846,0.14851444,3155.0,3153.4,5.612]
[1767507748251,0.14851444,3155.0,3153.2,0.00475813]
[1767507748545,0.14375631,3154.4,3153.2,0.00475813]
[1767507750640,0.14332663,3154.3,3153.2,0.00475813]
[1767507751240,0.14332663,3154.2,3152.3,0.15868]
[1767507751442,0.14332663,3153.9,3152.3,0.15868]
[1767507752141,0.14332663,3153.9,3152.3,0.40834069]
[1767507752342,0.00475813,3153.4,3152.8,0.00317208]
[1767507753548,0.14072852,3153.4,3152.8,0.00317208]
[1767507755251,0.03058481,3154.3,3152.9,0.14495042]
[1767507755450,1.70734839,3156.9,3154.2,1.05378346]
[1767507755650,0.15836,3158.8,3155.9,0.52689173]
[1767507755952,0.15832,3159.5,3156.9,0.52689173]
[1767507756149,0.52689173,3159.9,3157.0,0.317]
[1767507756349,1.62808283,3159.1,3158.1,0.00475007]
[1767507756541,0.00475007,3158.7,3158.1,0.0080881]
[1767507756741,0.00475007,3158.7,3156.7,0.15846]
[1767507756945,0.00475007,3158.7,3157.1,3.171]
[1767507757146,0.00475007,3158.7,3156.7,0.15846]
[1767507757350,0.13597039,3158.6,3156.7,0.15846]
[1767507757738,0.13597039,3158.6,3156.8,2.908]
[1767507757943,0.13597039,3158.6,3157.3,0.00315327]
[1767507758140,0.13597039,3158.6,3156.7,0.16218571]
[1767507758141,0.13597039,3158.6,3156.7,0.00372571]
[1767507758353,0.13597039,3158.3,3156.7,0.00372571]
[1767507759555,0.13597039,3158.1,3156.7,0.00372571]
[1767507760355,0.13597039,3157.9,3156.7,0.00372571]
[1767507760652,1.76405322,3157.9,3156.7,0.00372571]
[1767507760853,0.13597039,3157.8,3156.7,0.00372571]
[1767507761957,6.13597039,3157.8,3156.7,0.00372571]
[1767507762158,0.13597039,3157.7,3156.7,0.00372571]
[1767507765255,0.13597039,3157.6,3156.7,0.00372571]
[1767507765456,0.13597039,3157.5,3155.7,0.15851]
[1767507765659,0.00475007,3156.9,3155.7,0.15851]
[1767507766159,0.00475007,3156.9,3155.8,6.0]
[1767507766456,0.00475007,3156.9,3155.8,6.00377957]
[1767507766655,0.14072046,3156.9,3155.8,0.00377957]
[1767507769154,0.13597039,3158.9,3156.8,0.15845]
[1767507770155,0.00475007,3158.2,3157.5,0.00475007]
[1767507770361,0.13597039,3158.9,3157.5,0.00475007]
[1767507770560,1.62808283,3158.8,3157.5,0.00475007]
[1767507771155,1.76405322,3158.8,3157.5,0.00475007]
[1767507771367,0.00475007,3158.5,3157.5,0.00475007]
[1767507773558,0.00475007,3158.5,3157.5,6.00475007]
[1767507775864,0.00475007,3158.5,3157.5,0.00475007]
[1767507776065,1.62808283,3158.4,3157.5,0.00475007]
[1767507776368,0.00475007,3158.5,3157.5,0.00475007]
[1767507777861,0.13597039,3159.3,3157.7,0.15841]
[1767507778365,0.13597039,3159.3,3157.8,0.1584]
[1767507778975,0.00475007,3158.8,3157.8,0.1584]
[1767507779575,0.00475007,3158.8,3157.5,0.00475007]
[1767507779576,0.13597039,3159.7,3157.9,6.1584]
[1767507779777,0.13597039,3159.7,3158.2,0.15838]
[1767507779977,0.14004408,3160.2,3158.5,0.15837]
[1767507780177,0.14004408,3160.2,3158.6,0.15836]
[1767507780382,0.14004408,3160.2,3158.6,4.3552694]
[1767507780775,1.07244037,3159.8,3158.7,0.15836]
[1767507781177,1.07244037,3159.8,3158.8,6.0]
[1767507781771,0.00475007,3159.6,3158.7,0.15836]
[1767507781979,0.00475007,3159.6,3158.8,6.0]
[1767507782485,0.14004408,3160.7,3158.7,1.5620255]
[1767507782685,1.62808283,3160.1,3158.7,0.15836]
[1767507783186,1.62808283,3160.1,3158.7,6.15836]
[1767507783384,0.14004408,3162.1,3159.2,0.15833]
[1767507783584,0.14004408,3161.1,3159.2,5.74333]
[1767507784177,0.14004408,3161.1,3159.1,0.00475007]
[1767507784486,0.14250136,3161.1,3159.1,0.00475007]
[1767507784886,6.14250136,3161.1,3159.1,0.00475007]
[1767507785084,0.14004408,3161.0,3159.1,0.00475007]
[1767507785282,0.14004408,3160.8,3159.1,0.00475007]
[1767507786180,0.14004408,3160.6,3159.1,0.00475007]
[1767507786387,8.50804408,3160.6,3159.1,0.00475007]
[1767507786686,0.14004408,3160.5,3159.1,0.00475007]
[1767507790000,0.14004408,3160.3,3159.1,0.00475007]
[1767507790496,0.14004408,3161.0,3159.2,4.10275312]
[1767507790796,0.14004408,3160.4,3159.1,0.00475007]
[1767507793503,0.14004408,3160.2,3159.1,0.00475007]
[1767507793694,0.14004408,3160.2,3158.6,0.00385997]
[1767507794402,0.14004408,3160.0,3158.6,0.00385997]
[1767507794693,0.14004408,3159.5,3158.6,0.00385997]
[1767507795103,0.14004408,3159.4,3157.6,0.15841]
[1767507795995,0.14004408,3159.4,3158.2,0.00475007]
[1767507796599,0.14004408,3159.4,3157.6,0.00290165]
[1767507796600,0.14004408,3159.2,3157.6,0.00290165]
[1767507797194,0.14004408,3159.0,3157.6,0.00290165]
[1767507797900,0.14004408,3159.0,3158.0,0.00475007]
[1767507800495,0.00475007,3159.6,3158.0,6.00475007]
[1767507800496,7e-08,3159.6,3158.0,6.00475007]
[1767507800694,0.14004408,3160.4,3158.6,0.98537028]
[1767507800892,0.14004408,3160.4,3158.6,0.15836]
[1767507801097,0.14004408,3160.2,3158.6,6.15836]
[1767507801305,0.14004408,3160.2,3158.8,0.15835]
[1767507801695,0.00475007,3159.8,3158.8,0.15835]
[1767507801897,0.14004408,3160.2,3158.9,6.0]
[1767507802189,1.62808283,3160.1,3158.9,6.0]
[1767507803901,1.76812691,3160.1,3158.9,6.0]
[1767507804401,0.00475007,3159.8,3158.9,6.0]
[1767507804604,0.1582,3161.9,3159.3,0.29086129]
[1767507804898,3.03551555,3163.0,3161.0,0.15824]
[1767507805093,2.80922848,3164.7,3161.1,0.82701028]
[1767507805293,3.166,3165.4,3161.1,4.02952448]
[1767507805294,1.62808283,3163.0,3161.1,4.02952448]
[1767507805501,1.62808283,3163.0,3161.1,8.02752448]
[1767507805702,1.62808283,3163.0,3161.7,0.00475007]
[1767507805904,1.63071327,3163.0,3161.7,0.00745023]
[1767507806103,1.62808283,3162.7,3161.7,0.00745023]
[1767507806498,0.14004408,3162.6,3161.7,0.00745023]
[1767507807101,0.00263044,3163.0,3161.7,0.00745023]
[1767507807300,6.156,3164.4,3161.7,0.00745023]
[1767507807604,0.15805,3165.0,3161.7,0.00745023]
[1767507807813,1.005,3164.8,3161.8,10.06689337]
[1767507808110,1.005,3164.8,3161.7,0.00745023]
[1767507808111,1.005,3164.8,3161.9,5.564]
[1767507808303,0.975572,3163.5,3161.9,4.0712039]
[1767507808505,0.975572,3163.5,3161.9,10.0712039]
[1767507808704,0.975572,3163.5,3161.7,0.00745023]
[1767507808908,6.0,3163.4,3161.7,0.00745023]
[1767507809106,0.14004408,3163.3,3160.6,10.72369092]
[1767507809414,11.187,3163.4,3160.6,10.72369092]
[1767507809415,0.14004408,3163.1,3160.6,10.72369092]
[1767507809601,0.14004408,3163.0,3160.6,10.72369092]
[1767507810005,0.14004408,3163.0,3160.6,10.72676548]
[1767507810310,0.13319479,3162.8,3161.5,0.00475007]
[1767507810897,0.13319479,3162.4,3160.6,0.00307456]
[1767507811309,0.13319479,3162.0,3159.2,0.15833]
[1767507811506,0.13319479,3161.8,3159.5,0.82701028]
[1767507811806,0.13319479,3161.8,3159.5,2.57633028]
[1767507812003,0.13319479,3161.8,3160.3,0.00475007]
[1767507812200,0.13319479,3161.8,3160.3,0.00780306]
[1767507812803,0.14430017,3161.7,3160.3,0.00780306]
[1767507814304,0.00475007,3161.3,3160.3,0.00780306]
[1767507815306,0.00475007,3161.3,3160.3,6.00780306]
[1767507816012,0.14430017,3161.7,3160.3,6.00780306]
[1767507816210,0.14430017,3162.7,3160.3,6.00780306]
[1767507816415,0.14430017,3162.7,3160.3,0.00780306]
[1767507817415,0.00475007,3161.8,3160.3,0.00780306]
[1767507817614,0.14905024,3161.8,3160.3,0.00780306]
[1767507818015,0.14905024,3161.8,3160.3,6.00780306]
[1767507818718,0.14905024,3161.8,3160.4,4.12887808]
[1767507818920,0.14905024,3161.8,3160.3,0.00780306]
[1767507819716,0.14430017,3161.7,3160.3,0.00780306]
[1767507820808,0.14430017,3161.6,3160.3,0.00780306]
[1767507821613,0.14430017,3161.4,3160.3,0.00780306]
[1767507821920,0.14430017,3161.4,3158.9,1.07487442]
[1767507822218,0.14430017,3161.4,3159.0,4.09028652]
[1767507823021,0.14430017,3161.4,3159.9,0.00475007]
[1767507823613,0.14430017,3161.2,3159.9,0.00475007]
[1767507823818,0.14732658,3161.2,3159.0,0.00230938]
[1767507824416,0.14430017,3161.0,3159.0,0.00230938]
[1767507824611,0.14430017,3160.8,3159.0,0.00230938]
[1767507824808,0.14430017,3160.8,3159.6,0.00475007]
[1767507825111,0.14905024,3160.2,3158.1,0.13944287]
[1767507825519,0.14905024,3160.2,3158.2,4.11219909]
[1767507826022,0.14905024,3160.2,3158.9,0.00475007]
[1767507828112,6.14905024,3160.2,3158.9,0.00475007]
[1767507828324,0.14430017,3160.1,3158.9,0.00475007]
[1767507828518,0.14430017,3160.1,3158.2,0.00275379]
[1767507828718,0.14430017,3160.0,3158.2,0.00275379]
[1767507829115,0.14430017,3159.8,3158.2,0.00275379]
[1767507829521,0.14430017,3159.8,3158.7,0.00475007]
[1767507832120,0.14430017,3159.6,3158.2,0.00275379]
[1767507832522,6.14430017,3159.6,3158.2,0.00275379]
[1767507832721,0.14430017,3159.5,3158.2,0.00275379]
[1767507833127,0.14430017,3159.5,3158.5,0.0031667]
[1767507833424,0.14430017,3159.5,3157.0,4.53998613]
[1767507833425,0.14430017,3159.3,3156.7,0.13944287]
[1767507833627,0.14430017,3159.3,3157.0,0.15844]
[1767507833824,4.46230017,3159.2,3157.2,0.15843]
[1767507834021,5.18,3159.1,3157.3,0.15843]
[1767507834221,5.32430017,3159.2,3157.3,0.15843]
[1767507834621,0.00475007,3158.6,3157.3,0.16119513]
[1767507834824,0.00761135,3158.6,3157.3,0.16119513]
[1767507835230,0.00761135,3158.6,3157.4,6.0]
[1767507839628,0.14430017,3159.2,3157.4,6.15842]
[1767507839830,0.14430017,3159.2,3157.4,0.15842]
[1767507840732,0.00475007,3158.6,3158.0,0.00475007]
[1767507843529,0.00372427,3159.2,3158.0,6.00475007]
[1767507844223,0.00372427,3159.2,3158.1,0.15839]
[1767507844430,0.00475007,3159.0,3158.0,0.00475007]
[1767507844630,0.14494662,3159.0,3158.0,0.00475007]
[1767507844828,0.14019655,3158.8,3158.0,0.00475007]
[1767507846143,0.14019655,3158.6,3157.3,0.00276513]
[1767507847329,0.14019655,3158.5,3156.3,0.15848]
[1767507848235,0.14019655,3158.4,3156.3,0.15848]
[1767507848431,0.14019655,3158.4,3156.5,0.74182587]
[1767507849235,0.14019655,3158.4,3156.5,0.744591]
[1767507849438,0.14019655,3158.4,3156.7,0.15846]
[1767507850640,0.14019655,3158.4,3156.8,0.15845]
[1767507850831,0.14019655,3158.4,3156.9,0.00276513]
[1767507851142,0.14019655,3158.9,3156.9,0.00276513]
[1767507851340,0.14019655,3158.9,3156.6,0.14057842]
[1767507851544,0.14019655,3158.9,3156.9,0.15845]
[1767507852539,0.14019655,3158.9,3156.9,0.16121513]
[1767507852741,0.14019655,3158.9,3156.9,0.14334355]
[1767507852939,0.00475007,3159.0,3157.2,0.14057842]
[1767507853134,0.00475007,3159.0,3157.4,0.15842]
[1767507853529,0.00475007,3159.0,3157.5,4.15593737]
[1767507854442,0.00475007,3159.0,3157.5,10.15593737]
[1767507855236,0.00475007,3159.0,3157.7,0.15841]
[1767507858848,0.14019655,3158.9,3156.9,0.15845]
[1767507859040,0.14019655,3158.9,3157.2,0.00276513]
[1767507859644,0.14019655,3158.8,3156.9,0.15845]
[1767507859841,0.14019655,3158.7,3156.5,0.90029587]
[1767507860040,0.14019655,3158.7,3156.5,0.903061]
[1767507865753,0.14019655,3158.7,3156.6,0.15846]
[1767507866858,0.14019655,3158.7,3156.9,0.15845]
[1767507868349,0.14019655,3158.7,3157.0,0.15844]
[1767507868657,0.14019655,3158.7,3157.1,0.15844]
[1767507868855,0.00475007,3159.0,3157.2,0.15843]
[1767507869056,0.14494662,3159.0,3157.2,0.15843]
[1767507873465,0.13443396,3158.9,3156.6,3.91387574]